[Event "CZE-ch U16 Open 2023"]
[Site "Teplice"]
[Date "2023.03.16"]
[Round "7.6"]
[White "Kubin, Tomas Daniel"]
[Black "Werner, Hong Quan Dan"]
[Result "0-1"]
[ECO "B32"]
[WhiteElo "1936"]
[BlackElo "2085"]
[Annotator "TA"]
[PlyCount "104"]
[EventDate "2023.03.09"]
[EventType "swiss"]
[EventCountry "CZE"]
[SourceTitle "playchess.com"]
[Source "ChessBase"]
[SourceQuality "1"]
[TimeControl "40/5400+30:1800+30"]

{[%evp 14,104,32,29,34,36,41,35,35,41,53,39,57,0,43,-49,-47,-99,-109,-106,-100,-142,-142,-153,-40,-40,-33,-55,-4,-4,-4,-16,-16,-7,-25,-43,-46,-60,-50,-58,-50,-47,-53,-154,-164,-196,-181,-184,-165,-226,-224,-223,-207,-202,-139,-154,-93,-113,0,0,0,0,0,0,0,0,0,-6,0,-18,-11,-129,-104,-94,0,-152,-127,-125,-112,-143,-33,-1733,-1668,-29985,-29983,-29988,-29989,-29991,-29988,-29987,-29988,-29990,-29991]} 1. e4 {[%emt 0:00:07]} c5 {[%emt 0:00:18]} 2. Nf3 {[%emt 0:00:22][%cal Bg1f3,Bf3d4,Bd4b5,Bb5a3,Ba3c4,Bc4e3][%mdl 32]} Nc6 {[%emt 0:00:10]} 3. d4 {[%emt 0:00:12]} cxd4 {[%emt 0:00:13]} 4. Nxd4 {[%emt 0:00:12]} e5 {[%emt 0:00:15]} 5. Nb5 {[%emt 0:00:39]} d6 {[%emt 0:00:17]} 6. N1c3 {[%emt 0:00:47]} a6 {[%emt 0:00:23]} 7. Na3 {[%emt 0:00:16]} Be7 {[%emt 0:00:14] 7...Be6 is the modern continuation.} 8. Nc4 {[%emt 0:08:14]} b5 {[%emt 0:02:53] B32: Sicilian: Löwenthal and Kalashnikov Variations.} 9. Ne3 {[%emt 0:01:00]} (9. Qd5 Qc7 10. Ne3 b4 $15) 9... Nf6 {[%emt 0:01:31]} 10. Bd3 {[%emt 0:03:34]} O-O {[%emt 0:03:49] White is slightly better.} 11. O-O {[%emt 0:03:31]} Bb7 {[%emt 0:04:12]} 12. Ncd5 {[%emt 0:03:52]} Nxd5 {[%emt 0:00:40] [#]} 13. exd5 $146 {[%emt 0:03:00]} (13. Nxd5 $14 Bg5 14. Bxg5 Qxg5 15. a4) ({Predecessor:} 13. Nxd5 Bg5 14. c3 Bxc1 15. Rxc1 Ne7 16. c4 Nxd5 17. cxd5 Qb6 18. Be2 Kh8 19. Qd3 {0-1 Balzar,A (2322)-Gohil,H (2314) BL2-Sued 1314 2013 (9.6)}) 13... Nb8 {[%emt 0:00:54][%cal Bc6b8,Bb8d7,Bd7e5][%mdl 32]} (13... Nb4 $5 {[%cal Rb4d3]}) 14. Be4 {[%emt 0:09:42]} (14. Qh5 g6 15. Qe2 f5 $15) (14. a4 $14) 14... g6 $15 {[%emt 0:03:00]} 15. f4 {[%emt 0:06:46]} (15. a4 $15) 15... exf4 $17 {[%emt 0:08:34]} 16. Rxf4 {[%emt 0:01:15][%cal Oe3f5]} Bg5 {[%emt 0:00:22]} 17. Rf1 {[%emt 0:05:09][%cal Oe3f5]} Nd7 {[%emt 0:17:38]} 18. Kh1 {[%emt 0:17:43]} Bxe3 {[%emt 0:07:17]} ({Better is} 18... Re8 $17 19. Qf3 Qe7) 19. Bxe3 $15 {[%emt 0:00:13]} Qe7 {[%emt 0:00:25]} 20. Qd4 {[%emt 0:09:22]} f5 {[%emt 0:02:39]} (20... Rfe8 $15 21. Bh6 Qe5) 21. Bf3 $11 {[%emt 0:03:11]} Rac8 {[%emt 0:01:38][%cal Od7e5]} 22. Rae1 {[%emt 0:02:42]} Ne5 $36 {[%emt 0:00:46][%mdl 2048] Black has the initiative.} 23. Bf4 {[%emt 0:02:57][%cal Rf4e5]} Rfe8 {[%emt 0:00:37]} 24. Qd2 {[%emt 0:01:32]} Qf7 {[%emt 0:03:51]} 25. Bxe5 {[%emt 0:02:36]} dxe5 {[%emt 0:01:59]} 26. d6 {[%emt 0:01:14]} Rcd8 {[%emt 0:00:26]} 27. Bxb7 {[%emt 0:00:56]} Qxb7 {[%emt 0:00:09]} 28. Rf3 {[%emt 0:01:28]} (28. Qc3 $15) 28... e4 $1 $17 {[%emt 0:01:06]} 29. Rc3 {[%emt 0:00:53]} Qd7 $1 {[%emt 0:08:48]} 30. Qd5+ {[%emt 0:01:56]} Qe6 {[%emt 0:00:11]} 31. Qb7 {[%emt 0:01:12]} (31. Rd3 {was called for.}) 31... Rxd6 $19 {[%emt 0:09:38]} 32. Rc7 {[%emt 0:00:29]} Qf6 {[%emt 0:00:12] Prevents Rg7+} (32... Qxa2 33. Rxh7) 33. Rxh7 {[%emt 0:00:48][%cal Bc7h7,Bh7h3,Bh3d3,Bd3d4][%mdl 32]} e3 {[%emt 0:00:35] Threatens to win with ...e2.} 34. Rh3 {[%emt 0:02:32]} Qe7 {[%emt 0:02:19] Repels Qh7+} (34... Qg7 $142 35. Qxg7+ Kxg7) 35. Qf3 {[%emt 0:01:12]} e2 {[%emt 0:01:28]} (35... Qc7 $17 {aiming for ...Rd2.} 36. Qf1 Rde6) 36. Qb3+ $11 {[%emt 0:01:31]} Kg7 {[%emt 0:04:04]} 37. Qc3+ $1 {[%emt 0:03:04]} Rf6 {[%emt 0:03:07]} 38. Qd2 {[%emt 0:01:12]} f4 {[%emt 0:00:55]} 39. Rd3 {[%emt 0:00:39] Wards off Rd8. Rd7 would be deadly.} Qe4 {[%emt 0:03:50] And now ...f3 would win.} 40. Rd4 {[%emt 0:01:14]} Qe3 {[%emt 0:03:58] ( -> ...Qf2)} 41. Rd7+ {[%emt 0:06:26]} Kh6 {[%emt 0:00:22]} 42. Qd4 {[%emt 0:01:27]} (42. Rd3 $1 $11 {was the only way to keep the balance.} Qe5 43. Kg1) 42... Ree6 {[%emt 0:01:09]} (42... Qxd4 43. Rxd4 f3 44. gxf3 $15) 43. Rd8 {[%emt 0:05:42] [#]} Re8 {[%emt 0:13:29] Inhibits Rh8+.} 44. Rd7 $1 $17 {[%emt 0:04:56] [#]} (44. Qxf6 Qf2) 44... Re5 $1 {[%emt 0:02:58][%cal Oe5h5] White must now prevent ...Rh5!} (44... Qxd4 45. Rxd4 f3 46. gxf3 $15) 45. Rd8 {[%emt 0:01:39]} Kg5 {[%emt 0:00:49]} 46. h3 {[%emt 0:03:12] [#]} Kh4 {[%emt 0:06:28]} (46... Qxd4 47. Rxd4 Kh4 48. Rd3 $15) (46... Rff5 $1 $17 {...Qg3 is the strong threat.} 47. b3 Qg3) 47. Qd7 $4 {[%emt 0:06:20][%mdl 8192] Now White is beyond hope.} (47. Qxe3 $15 Rxe3 48. Kh2) 47... Kg3 $19 {[%emt 0:01:55][%cal Bh4g3,Bg3f2,Bf2e1,Be1d1,Bd1c1][%mdl 32] Active counter play!} ({Not} 47... Qg3 48. Rxe2 (48. Rh8+ Rh5 $11) 48... Rxe2 49. Rh8+ Kg5 50. Qd5+ (50. h4+ Qxh4+ 51. Rxh4 Kxh4 $17) 50... Rf5 51. Qd8+ Rf6 52. Qd5+ Rf5 53. Qd8+ Rf6 54. Qd5+ $11) 48. Qg4+ {[%emt 0:02:00]} Kf2 {[%emt 0:00:06] Black mates.} 49. Rd3 {[%emt 0:03:18]} Kxe1 {[%emt 0:00:28]} 50. Rxe3 {[%emt 0:00:23]} fxe3 {[%emt 0:00:25]} 51. Qh4+ {[%emt 0:00:29]} Kd1 {[%emt 0:00:20]} 52. Qd4+ {[%emt 0:00:32]} Kc1 {[%emt 0:00:13] A cool game by Werner.   Weighted Error Value: White=0.38/Black=0.18 (very precise)} 0-1

[Event "CZE-ch U16 Open 2023"]
[Site "Teplice"]
[Date "2023.03.16"]
[Round "7.7"]
[White "Hozda, Max"]
[Black "Janous, Marek"]
[Result "0-1"]
[ECO "A58"]
[WhiteElo "2067"]
[BlackElo "2124"]
[Annotator "TA"]
[PlyCount "56"]
[EventDate "2023.03.09"]
[EventType "swiss"]
[EventCountry "CZE"]
[SourceTitle "playchess.com"]
[Source "ChessBase"]
[SourceQuality "1"]
[TimeControl "40/5400+30:1800+30"]

{[%evp 9,56,19,52,56,50,52,53,35,49,31,48,0,8,3,9,0,21,8,23,8,20,-2,0,0,0,-49,-49,-60,-72,-99,-63,-73,-74,-350,-348,-389,-388,-1081,-1097,-1031,-957,-1177,-1178,-1168,-668,-1137,-1135,-1033,-1002]} 1. d4 {[%emt 0:00:13]} Nf6 {[%emt 0:00:19]} 2. c4 {[%emt 0:00:06][%cal Bc2c4,Bc4b5,Bb5a6][%mdl 32]} c5 {[%emt 0:00:27]} 3. d5 {[%emt 0:00:07]} b5 {[%emt 0:00:05]} 4. cxb5 {[%emt 0:00:05]} a6 {[%emt 0:00:06]} 5. bxa6 {[%emt 0:00:34]} g6 {[%emt 0:00:12][%cal Of8g7]} 6. Nc3 {[%emt 0:00:06] A58: Benko/Volga Gambit: Lines with 5 bxa6.} Bg7 {[%emt 0:00:05][%cal Oe8g8]} 7. e4 {[%emt 0:00:28] Black must now prevent e5.} O-O {[%emt 0:00:07][%cal Oe7e6]} 8. Nf3 {[%emt 0:01:23] White is slightly better.} Qa5 {[%emt 0:00:05]} 9. Bd2 {[%emt 0:00:23]} Bxa6 {[%emt 0:00:08]} 10. Bxa6 {[%emt 0:08:09]} Qxa6 {[%emt 0:00:28]} 11. Qe2 {[%emt 0:00:30]} e6 {[%emt 0:00:07]} 12. dxe6 {[%emt 0:07:35]} fxe6 {[%emt 0:00:33][%cal Bf7e6,Be6d5,Bd5d4,Bd4d3][%mdl 32]} 13. Qxa6 {[%emt 0:00:18]} Nxa6 {[%emt 0:00:02][%cal Bb8a6,Ba6b4,Bb4d5,Bd5c3][%mdl 32]} 14. O-O {[%emt 0:16:56]} Nb4 {[%emt 0:01:51]} 15. Ne1 {[%emt 0:01:59]} (15. b3 $5 {[%cal Ra2a4]}) 15... d5 {[%emt 0:00:36]} 16. exd5 {[%emt 0:00:54]} exd5 {[%emt 0:00:03]} 17. a3 {[%emt 0:01:58] [#]} (17. a4 $11 {might be stronger.}) 17... d4 $146 {[%emt 0:22:06][%mdl 1024] Black has compensation.} ({Predecessor:} 17... Nc6 18. Bg5 Ne4 19. Nxe4 dxe4 20. Rc1 Rf5 21. Be3 Nd4 22. Kh1 Nb3 23. Rc4 Bxb2 24. Rxe4 Rxa3 {½-½ Tuomainen,F (2087)-Marek,M (2389) EU-ch U18 26th 2016 (1)}) 18. Ne2 {[%emt 0:01:53]} Nbd5 $1 {[%emt 0:00:31]} 19. Ng3 {[%emt 0:05:49]} c4 {[%emt 0:04:01] Black is more active.} 20. Nc2 {[%emt 0:06:48]} d3 {[%emt 0:01:08][%cal Of6h5] [#] And now ...Nh5! would win.} 21. Nd4 $2 {[%emt 0:03:24][%mdl 8192] This costs White the game.} (21. Nb4 $17) 21... Rfb8 $19 {[%emt 0:01:27]} 22. Rab1 {[%emt 0:05:48]} Ng4 {[%emt 0:04:01]} 23. Bc3 {[%emt 0:01:26]} (23. Nc6 Rxb2 24. Rbd1) 23... Nxc3 {[%emt 0:00:20] Black is clearly winning.} 24. bxc3 {[%emt 0:00:08]} Bxd4 {[%emt 0:00:04]} 25. cxd4 {[%emt 0:00:46]} Rxb1 {[%emt 0:00:05]} 26. Rxb1 {[%emt 0:00:12]} Nf6 {[%emt 0:01:30][%cal Oc4c3] [#] ...c3! would be deadly.} 27. Nf1 {[%emt 0:05:13]} c3 {[%emt 0:02:01][%cal Oc3c2] Strongly threatening ...c2!} 28. f3 {[%emt 0:00:33]} Re8 {[%emt 0:01:24] Weighted Error Value: White=0.87/Black=0.28 (precise)} 0-1

[Event "CZE-ch U16 Open 2023"]
[Site "Teplice"]
[Date "2023.03.16"]
[Round "7.8"]
[White "Vilimek, Vit"]
[Black "Svoboda, Daniel"]
[Result "1/2-1/2"]
[ECO "B90"]
[WhiteElo "2018"]
[BlackElo "1748"]
[Annotator "TA"]
[PlyCount "101"]
[EventDate "2023.03.09"]
[EventType "swiss"]
[EventCountry "CZE"]
[SourceTitle "playchess.com"]
[Source "ChessBase"]
[SourceQuality "1"]
[TimeControl "40/5400+30:1800+30"]

{[%evp 13,101,-11,12,10,17,22,39,30,49,37,54,47,62,64,58,49,110,105,187,185,181,184,129,0,-1,-111,-104,-82,-101,-90,-94,-97,-85,-223,-118,-127,-99,-99,-103,-103,-95,-103,-103,-103,-100,-129,-77,-83,-8,-13,-20,-87,-79,-112,-112,-120,-117,-120,-101,-122,-129,-133,10,-196,-190,-173,-54,-222,-204,-317,-80,-102,-93,-170,-83,-620,0,0,0,0,0,-34,0,0,0,0,0,0,0,0]} 1. e4 {[%emt 0:00:01]} c5 {[%emt 0:00:16]} 2. Nf3 {[%emt 0:00:03]} d6 {[%emt 0:00:12]} 3. d4 {[%emt 0:00:02]} cxd4 {[%emt 0:00:09]} 4. Nxd4 {[%emt 0:00:02]} Nf6 {[%emt 0:00:09]} 5. Nc3 {[%emt 0:00:02]} a6 {[%emt 0:00:07]} 6. Rg1 {[%emt 0:00:06]} e5 {[%emt 0:03:45]} 7. Nb3 {[%emt 0:00:02]} Be6 {[%emt 0:02:35]} 8. g4 {[%emt 0:00:10] B90: Sicilian Najdorf: Unusual White 6th moves, 6 Be3 Ng4 and 6 Be3 e5.} h6 {[%emt 0:01:32]} 9. h4 {[%emt 0:00:07]} Nfd7 {[%emt 0:16:32]} 10. g5 {[%emt 0:04:40] White is slightly better.} hxg5 {[%emt 0:04:37]} 11. hxg5 {[%emt 0:00:11]} g6 {[%emt 0:03:08] [#]} 12. Qf3 $146 {[%emt 0:00:45]} ({Predecessor:} 12. Be3 Nc6 13. Qd2 Na5 14. O-O-O Nxb3+ 15. axb3 Qa5 16. Kb1 Rc8 17. f4 Be7 18. Bg2 exf4 19. Bxf4 {½-½ Rothuis,V (2346)-Firouzja,A (2728) Katara Bullet Final blitz 2020 (2.1)}) 12... Be7 {[%emt 0:04:17]} 13. Bd2 {[%emt 0:03:20]} Nc6 {[%emt 0:08:34]} 14. O-O-O {[%emt 0:00:39]} (14. Nd5 a5 15. c3 a4 $11) 14... b5 {[%emt 0:12:09]} (14... a5 $14) 15. Nd5 $16 {[%emt 0:05:13]} Nb6 {[%emt 0:07:59]} (15... Bf8 $16 {keeps fighting.}) 16. Rh1 $18 {[%emt 0:17:50]} Rxh1 {[%emt 0:08:17]} 17. Qxh1 {[%emt 0:00:04]} Nc4 {[%emt 0:03:26]} (17... Rc8 $18) 18. Nxe7 {[%emt 0:18:30]} (18. f4 $16) 18... Kxe7 $11 {[%emt 0:04:47][%cal Be8e7,Be7d7,Bd7c8,Bc8b7][%mdl 32]} 19. Be3 {[%emt 0:07:55]} (19. Bc3 $11) 19... Nxe3 $17 {[%emt 0:07:45]} 20. fxe3 {[%emt 0:00:05]} Nb4 21. Qf3 {[%emt 0:14:36]} Qc7 $1 {[%emt 0:04:11][%csl Gb4][%cal Rc7c2]} 22. Qf6+ {[%emt 0:01:09]} Kd7 $1 {[%emt 0:01:58][%csl Gb4][%cal Rc7c2]} 23. Na1 {[%emt 0:03:21]} (23. Rd2 $17 {only move.} Nxa2+ 24. Kb1) 23... Nxa2+ {[%emt 0:02:00]} (23... Bxa2 24. Bh3+ Kc6 25. c3 $18) (23... Rc8 $19 24. Rd2 Nxa2+ 25. Kb1 Kc6) 24. Kb1 {[%emt 0:00:06][%cal Of1h3]} Kc8 {[%emt 0:03:03] And now ...Kb7 would win.} 25. Bh3 {[%emt 0:03:35][%mdl 64] Decoy} Bxh3 {[%emt 0:00:42]} 26. Qh8+ {[%emt 0:06:26]} Kb7 {[%emt 0:00:23]} 27. Qxh3 {[%emt 0:00:02]} Nb4 {[%emt 0:00:19]} 28. c3 {[%emt 0:00:18]} Nc6 {[%emt 0:00:35]} 29. Qf1 {[%emt 0:00:31]} Na5 {[%emt 0:00:26]} (29... Nd8 $142 $1 30. Nc2 Ne6) 30. Nc2 {[%emt 0:00:46]} Nc4 {[%emt 0:00:51]} (30... Ka7 $17) 31. Qd3 $11 {[%emt 0:02:06]} Rd8 {[%emt 0:00:31]} 32. Qd5+ {[%emt 0:00:28]} (32. b3 $11 {keeps the balance.} Nb6 33. Rf1) 32... Ka7 $17 {[%emt 0:00:07]} 33. Rf1 {[%emt 0:10:29]} Rd7 $1 {[%emt 0:00:45]} 34. b3 {[%emt 0:00:50]} Nb6 {[%emt 0:00:42][%csl LRc3,LRd5]} 35. Qd3 {[%emt 0:00:01]} d5 36. Nb4 {[%emt 0:01:20][%cal Rb4d5]} dxe4 {[%emt 0:01:08]} 37. Qxe4 {[%emt 0:00:31]} Rd6 {[%emt 0:00:30] Prevents Nc6+} (37... Qxc3 $17 38. Nc6+ Ka8 39. Na5+ Nd5) 38. Rf6 $2 {[%emt 0:00:48] [#]} (38. Qxe5 $11 {and White stays safe.} Rd7 39. Rf6) 38... Rxf6 $1 $19 {[%emt 0:00:18]} 39. gxf6 {[%emt 0:00:01][%mdl 4096] Endgame KQN-KQN} a5 {[%emt 0:00:14]} ({Don't take} 39... Qxc3 40. Nc6+ Kb7 41. Na5+ (41. Qxe5 $2 {too greedy.} Qxb3+ 42. Kc1 Qa3+ 43. Kc2 Qa2+ 44. Kd1 Kxc6 $19) 41... Kc7 42. Qb7+ Kd6 43. Qxb6+ Kd5 44. Qb7+ (44. Qxa6 Qe1+ 45. Kc2 Qe2+ 46. Kc1 Qe1+ 47. Kc2 Qe2+ 48. Kc1 Qe1+ 49. Kc2 $11) 44... Ke6 45. Qxa6+ Kf5 46. Qxb5 $16) ({Black should play} 39... Nd7 $19 40. Nc6+ Kb6) 40. Nc6+ $2 {[%emt 0:01:44]} (40. Qxe5 $1 $15 Qxe5 41. Nc6+ Kb7 42. Nxe5) 40... Ka6 {[%emt 0:00:10] White must now prevent ...g5.} 41. Kb2 {[%emt 0:05:26] [#]} (41. Kc2 $142 Nd7 42. b4) 41... Qd6 $2 {[%emt 0:03:49]} (41... Qb7 $1 $19 {Hoping for ...g5.} 42. Kc1 g5) 42. Nxe5 {[%emt 0:09:07]} Qxf6 {[%emt 0:12:02]} 43. Nd3 {[%emt 0:07:55]} (43. Nc6 $17) 43... Qd6 {[%emt 0:03:08]} (43... b4 $19 44. Qd4 Qxd4 45. cxd4 g5) 44. b4 $2 {[%emt 0:04:50][%mdl 8192]} (44. Kc2 $17) 44... Qh2+ $2 {[%emt 0:05:27]} ({Black should try} 44... f5 $19 45. Qd4 Nc4+ 46. Kc1 Qxd4 47. cxd4 Nxe3 48. bxa5 Kxa5) 45. Kc1 {[%emt 0:00:34] Intending Nc5+ and mate.} Qg1+ {[%emt 0:00:58]} 46. Kc2 {[%emt 0:00:10]} Qh2+ {[%emt 0:00:21]} 47. Kd1 {[%emt 0:01:43] White threatens Nc5+ and mate.} Qg1+ {[%emt 0:02:12]} (47... Qd6 $5 {[%cal Rf7f5]} 48. Kc2 f5 $17) 48. Ke2 {[%emt 0:00:07] Nc5+ would kill now. The position is equal.} (48. Kc2 $5 Qh2+ $8 49. Kb1 Qg1+ 50. Kc2 $11) 48... Qh2+ {[%emt 0:00:44]} 49. Kf1 {[%emt 0:00:15] Threatening mate with Nc5+.} Qh3+ {[%emt 0:01:07]} 50. Kg1 {[%emt 0:00:09] White wants to mate with Nc5+.} Qg3+ {[%emt 0:00:53]} 51. Kf1 {[%emt 0:00:12] Both players deserved the win here.   Weighted Error Value: White=0.48/Black=0.48} 1/2-1/2

[Event "CZE-ch U16 Open 2023"]
[Site "Teplice"]
[Date "2023.03.16"]
[Round "7.9"]
[White "Zezula, Jakub"]
[Black "Pelc, Adam"]
[Result "0-1"]
[ECO "B12"]
[WhiteElo "1963"]
[BlackElo "1871"]
[Annotator "TA"]
[PlyCount "48"]
[EventDate "2023.03.09"]
[EventType "swiss"]
[EventCountry "CZE"]
[SourceTitle "playchess.com"]
[Source "ChessBase"]
[SourceQuality "1"]
[TimeControl "40/5400+30:1800+30"]

{[%evp 9,48,0,0,-39,0,-22,0,-24,12,0,0,0,2,0,51,-211,-216,-216,-193,-204,-212,-186,-66,-225,-233,-213,-187,-503,-439,-421,-408,-913,-915,-1508,-1509,-2086,-2050,-29991,-292,-29992,-1100]} 1. e4 {[%emt 0:00:03]} c6 {[%emt 0:00:23]} 2. d4 {[%emt 0:00:17]} d5 {[%emt 0:00:09]} 3. f3 {[%emt 0:01:25]} e6 {[%emt 0:02:02]} 4. Nc3 {[%emt 0:01:47]} Bb4 {[%emt 0:04:00]} 5. e5 {[%emt 0:04:54]} c5 {[%emt 0:02:05]} 6. f4 {[%emt 0:04:45] B12: Caro-Kann: Advance Variation.} (6. a3 $5 {[%cal Ra3b4]} Bxc3+ 7. bxc3 $11) 6... Ne7 {[%emt 0:01:59][%cal Bg8e7,Be7f5,Bf5e3,Be3c4,Bc4b2][%mdl 32]} 7. Nf3 {[%emt 0:06:59]} (7. a3 $5 {[%cal Ra3b4]} Ba5 8. Bd2 $11) 7... Nf5 {[%emt 0:01:35]} 8. Bd2 {[%emt 0:04:16] The position is equal.} Nc6 {[%emt 0:12:41]} 9. Ne2 {[%emt 0:04:48]} Ne3 {[%emt 0:01:46]} 10. Qc1 {[%emt 0:01:49]} Bxd2+ {[%emt 0:03:40]} 11. Qxd2 {[%emt 0:00:33]} Nb4 {[%emt 0:00:23] [#]} 12. c3 $146 {[%emt 0:03:20][%mdl 8192] [#]} ({Wrong is} 12. Rc1 $2 Nc4 13. Qd1 Nxb2 $17) (12. dxc5 $14 {stays ahead.} Qa5 13. Kf2 Nxf1 14. Qc3 (14. Kxf1 Qxc5 15. c3 Nc6 $14)) ({Predecessor:} 12. Rc1 Nc4 13. Qd1 Nxb2 14. Qd2 Nc4 15. Qd1 Nxa2 16. Rb1 Qa5+ 17. Kf2 Nb4 18. g4 Nc6 19. Bh3 cxd4 20. Nexd4 {0-1 Menzi,N (1902)-Isgandarova,K (2203) EU-ch (Women) 13th 2012 (7)}) 12... Nc4 $1 $19 {[%emt 0:02:01][%mdl 64] Deflection} 13. Qd1 {[%emt 0:00:32]} Nxb2 {[%emt 0:00:19]} 14. Qb1 {[%emt 0:01:05][%cal Oc3b4]} N4d3+ {[%emt 0:06:05]} 15. Kd2 {[%emt 0:00:10] [#]} Qb6 {[%emt 0:00:47]} ({Black should try} 15... b6 $1 $19 {Strongly threatening ...Ba6.} 16. Ne1 Nf2 17. Qxb2 Nxh1 18. dxc5 O-O) 16. Ke3 $2 {[%emt 0:07:19]} (16. Nc1 $15 Nxf4 17. dxc5 Nc4+ 18. Bxc4 Qxb1 19. Rxb1 dxc4 20. Rb4) 16... Bd7 {[%emt 0:03:39]} 17. Ng3 {[%emt 0:05:08]} Bb5 $36 {[%emt 0:01:58][%mdl 2048] ...Rc8 is the strong threat. Keeping White busy.} 18. Nd2 $2 {[%emt 0:09:42]} (18. a4 Ba6 19. Bxd3 Bxd3 20. Qc1 cxd4+ 21. Nxd4) 18... cxd4+ {[%emt 0:01:00]} 19. cxd4 {[%emt 0:00:13]} Rc8 {[%emt 0:00:20]} 20. Ne2 {[%emt 0:03:11] Inhibits Rc3.} (20. a4 $142 Ba6 21. Ra3) 20... Ba4 {[%emt 0:02:52]} 21. Nb3 {[%emt 0:01:14]} Bxb3 {[%emt 0:01:31]} 22. axb3 {[%emt 0:00:02]} Qxb3 {[%emt 0:00:02]} 23. Qa2 {[%emt 0:02:41]} Nc4+ {[%emt 0:00:14]} (23... Nxe5+ $2 24. Qxb3 Nbc4+ 25. Kf2 Ng4+ 26. Kg3 $18) 24. Kf3 {[%emt 0:00:15]} Ndxe5+ {[%emt 0:00:07][%mdl 64] Discovered Attack (Double check). Excellently played by Pelc!   Weighted Error Value: White=2.01/Black=0.17 (very precise)} 0-1